fUSD/lending_fUSD_20240618
["ID","MTS","AMOUNT","RATE_DAILY","PERIOD"]
[329795698,1718677834377,-157.92233513,0.00021914,2]
[329795700,1718677834387,-158.09956331,0.00021914,2]
[329795702,1718677834396,-379.2615261,0.00021915,2]
[329795704,1718677834406,-155.68442936,0.00021915,2]
[329795706,1718677834417,-1229.02629051,0.00021915,2]
[329795708,1718677834431,-207.81350828,0.00021915,2]
[329795710,1718677834440,-167.03737297,0.00021915,2]
[329795712,1718677834450,-217.48212515,0.00021915,2]
[329795714,1718677834459,-1638.23707853,0.00021915,2]
[329795716,1718677834468,-238.24931511,0.00021915,2]
[329795718,1718677834477,-554.22293625,0.00021915,2]
[329795720,1718677834486,-302.01756079,0.00021915,2]
[329795722,1718677834495,-155.69869335,0.00021915,2]
[329795735,1718677834738,-1338.53249678,0.00021915,2]
[329795736,1718677834749,-653.74741891,0.00021915,2]
[329795737,1718677834758,-269.08545374,0.00021915,2]
[329795739,1718677834768,-491.34088374,0.00021915,2]
[329795741,1718677834779,-478.37910958,0.00021915,2]
[329795743,1718677834788,-443.70496064,0.00021915,2]
[329795745,1718677834798,-156.75477503,0.00021915,2]
[329795747,1718677834808,-4481.0182622,0.00021915,2]
[329795749,1718677834818,-156.36169793,0.00021915,2]
[329795751,1718677834828,-1614.74434542,0.00021915,2]
[329795753,1718677834838,-1610.66029753,0.00021915,2]
[329795755,1718677834847,-155.7012172,0.00021915,2]
[329795757,1718677834857,-2391.23195611,0.00021915,2]
[329795759,1718677834867,-218.70336113,0.00021915,2]
[329795761,1718677834877,-310.62388759,0.00021915,2]
[329795763,1718677834886,-278.52809116,0.00021915,2]
[329795765,1718677834896,-5423.16704568,0.00021915,2]
[329795767,1718677834905,-248.18449751,0.00021915,2]
[329795769,1718677834915,-551.69927238,0.00021915,2]
[329795771,1718677834930,-3125.71638909,0.00021916,2]
[329795773,1718677834939,-826.67963207,0.00021916,2]
[329795775,1718677834952,-436.18334104,0.00021916,2]
[329795777,1718677834963,-155.81798748,0.00021916,2]
[329795779,1718677834973,-155.32884147,0.00021916,2]
[329795781,1718677834983,-978.0,0.00021917,2]
[329795782,1718677834993,-215.89321707,0.00021917,2]
[329795784,1718677835003,-11783.97636264,0.00021917,2]
[329795786,1718677835014,-477.05359847,0.00021917,2]
[329795788,1718677835024,-500.0,0.00021917,2]
[329795790,1718677835034,-500.0,0.00021917,2]
[329795792,1718677835044,-500.0,0.00021917,2]
[329795793,1718677835054,-500.0,0.00021917,2]
[329795794,1718677835063,-500.85712176,0.00021917,2]
[329795795,1718677835073,-500.0,0.00021917,2]
[329795796,1718677835083,-500.0,0.00021917,2]
[329795797,1718677835092,-500.0,0.00021917,2]
[329795798,1718677835102,-500.0,0.00021917,2]
[329795799,1718677835111,-183.3973576,0.00021917,2]
[329795800,1718677835120,-497.72594113,0.00021917,2]
[329795801,1718677835130,-501.79097845,0.00021917,2]
[329795802,1718677835140,-371.0257025,0.00021917,2]
[329795803,1718677835149,-729.27546915,0.00021917,2]
[329795804,1718677835160,-500.0,0.00021917,2]
[329795805,1718677835173,-505.85072758,0.00021917,2]
[329795806,1718677835182,-497.69387795,0.00021917,2]
[329795807,1718677835192,-193.53049327,0.00021917,2]
[329795808,1718677835202,-507.02867206,0.00021917,2]
[329795809,1718677835211,-200.0,0.00021917,2]
[329795810,1718677835221,-164.69676135,0.00021917,2]
[329795811,1718677835230,-500.74631808,0.00021917,2]
[329795812,1718677835240,-500.0,0.00021917,2]
[329795813,1718677835249,-500.0,0.00021917,2]
[329795814,1718677835259,-525.18191636,0.00021917,2]
[329795815,1718677835268,-500.0,0.00021917,2]
[329795816,1718677835278,-500.0,0.00021917,2]
[329795817,1718677835287,-506.44832945,0.00021917,2]
[329795818,1718677835296,-500.0,0.00021917,2]
[329795819,1718677835306,-500.0,0.00021917,2]
[329795820,1718677835315,-500.0,0.00021917,2]
[329795821,1718677835324,-512.90791054,0.00021917,2]
[329795822,1718677835334,-505.50792643,0.00021917,2]
[329795823,1718677835344,-508.0024465,0.00021917,2]
[329795824,1718677835353,-500.0,0.00021917,2]
[329795825,1718677835362,-510.59,0.00021917,2]
[329795826,1718677835372,-511.07456392,0.00021917,2]
[329795827,1718677835381,-500.0,0.00021917,2]
[329795828,1718677835391,-510.59863895,0.00021917,2]
[329795829,1718677835400,-500.0,0.00021917,2]
[329795830,1718677835410,-500.0,0.00021917,2]
[329795831,1718677835422,-500.0,0.00021917,2]
[329795832,1718677835431,-500.0,0.00021917,2]
[329795833,1718677835441,-500.0,0.00021917,2]
[329795834,1718677835451,-500.0,0.00021917,2]
[329795835,1718677835460,-500.0,0.00021917,2]
[329795836,1718677835470,-500.0,0.00021917,2]
[329795837,1718677835480,-509.04991531,0.00021917,2]
[329795838,1718677835490,-500.0,0.00021917,2]
[329795839,1718677835500,-500.0,0.00021917,2]
[329795840,1718677835510,-500.0,0.00021917,2]
[329795841,1718677835520,-500.0,0.00021917,2]
[329795842,1718677835529,-500.0,0.00021917,2]
[329795843,1718677835539,-552.43396617,0.00021917,2]
[329795844,1718677835549,-500.0,0.00021917,2]
[329795845,1718677835559,-502.22621239,0.00021917,2]
[329795846,1718677835568,-197.78451556,0.00021917,2]
[329795847,1718677835578,-500.0,0.00021917,2]
[329795848,1718677835587,-500.0,0.00021917,2]
[329795849,1718677835597,-500.0,0.00021917,2]
[329795850,1718677835606,-500.0,0.00021917,2]
[329795851,1718677835615,-500.0,0.00021917,2]
[329795852,1718677835625,-500.0,0.00021917,2]
[329795853,1718677835635,-500.0,0.00021917,2]
[329795854,1718677835644,-500.0,0.00021917,2]
[329795855,1718677835654,-500.0,0.00021917,2]
[329795856,1718677835663,-507.1125825,0.00021917,2]
[329795857,1718677835676,-500.0,0.00021917,2]
[329795858,1718677835686,-500.0,0.00021917,2]
[329795859,1718677835702,-500.0,0.00021917,2]
[329795860,1718677835712,-500.0,0.00021917,2]
[329795861,1718677835721,-503.7687637,0.00021917,2]
[329795862,1718677835731,-500.0,0.00021917,2]
[329795863,1718677835743,-500.0,0.00021917,2]
[329795864,1718677835753,-498.0,0.00021917,2]
[329795865,1718677835763,-513.39146826,0.00021917,2]
[329795866,1718677835773,-500.0,0.00021917,2]
[329795867,1718677835783,-500.0,0.00021917,2]
[329795868,1718677835794,-504.6414021,0.00021917,2]
[329795869,1718677835804,-500.0,0.00021917,2]
[329795870,1718677835813,-500.0,0.00021917,2]
[329795871,1718677835823,-537.46259246,0.00021917,2]
[329795872,1718677835832,-500.0,0.00021917,2]
[329795873,1718677835842,-507.70616579,0.00021917,2]
[329795874,1718677835851,-500.0,0.00021917,2]
[329795875,1718677835861,-507.32869745,0.00021917,2]
[329795876,1718677835871,-500.0,0.00021917,2]
[329795877,1718677835881,-506.5149633,0.00021917,2]
[329795878,1718677835890,-500.0,0.00021917,2]
[329795879,1718677835900,-500.0,0.00021917,2]
[329795880,1718677835910,-508.48464304,0.00021917,2]
[329795881,1718677835923,-502.4151262,0.00021917,2]
[329795882,1718677835932,-504.72306108,0.00021917,2]
[329795883,1718677835942,-503.02720733,0.00021917,2]
[329795884,1718677835952,-504.37361618,0.00021917,2]
[329795885,1718677835962,-602.19183206,0.00021917,2]
[329795886,1718677835971,-510.39513768,0.00021917,2]
[329795887,1718677835981,-500.0,0.00021917,2]
[329795888,1718677835991,-500.0,0.00021917,2]
[329795889,1718677836000,-512.99607302,0.00021917,2]
[329795890,1718677836010,-500.0,0.00021917,2]
[329795891,1718677836019,-500.0,0.00021917,2]
[329795892,1718677836028,-516.39206733,0.00021917,2]
[329795893,1718677836037,-503.78012991,0.00021917,2]
[329795894,1718677836046,-506.66657096,0.00021917,2]
[329795895,1718677836056,-500.0,0.00021917,2]
[329795896,1718677836066,-502.51454561,0.00021917,2]
[329795897,1718677836075,-509.16618507,0.00021917,2]
[329795898,1718677836085,-504.73677149,0.00021917,2]
[329795899,1718677836094,-500.0,0.00021917,2]
[329795900,1718677836104,-500.0,0.00021917,2]
[329795901,1718677836113,-500.0,0.00021917,2]
[329795902,1718677836123,-500.0,0.00021917,2]
[329795903,1718677836132,-506.87446756,0.00021917,2]
[329795904,1718677836142,-500.0,0.00021917,2]
[329795905,1718677836151,-581.34900712,0.00021917,2]
[329795906,1718677836161,-500.0,0.00021917,2]
[329795907,1718677836176,-564.95584137,0.00021917,2]
[329795908,1718677836186,-500.0,0.00021917,2]
[329795909,1718677836196,-500.0,0.00021917,2]
[329795910,1718677836206,-500.0,0.00021917,2]
[329795911,1718677836216,-509.46076708,0.00021917,2]
[329795912,1718677836226,-512.44519462,0.00021917,2]
[329795913,1718677836236,-506.77329223,0.00021917,2]
[329795914,1718677836247,-556.46959516,0.00021917,2]
[329795915,1718677836256,-556.14785984,0.00021917,2]
[329795916,1718677836267,-507.86711049,0.00021917,2]
[329795917,1718677836276,-500.0,0.00021917,2]
[329795918,1718677836286,-500.0,0.00021917,2]
[329795919,1718677836296,-515.64394699,0.00021917,2]
[329795920,1718677836306,-509.09056882,0.00021917,2]
[329795921,1718677836315,-504.74592089,0.00021917,2]
[329795922,1718677836325,-509.36815293,0.00021917,2]
[329795923,1718677836335,-569.88052765,0.00021917,2]
[329795924,1718677836344,-504.71298096,0.00021917,2]
[329795925,1718677836354,-500.0,0.00021917,2]
[329795926,1718677836364,-500.0,0.00021917,2]
[329795927,1718677836376,-500.0,0.00021917,2]
[329795928,1718677836386,-500.0,0.00021917,2]
[329795929,1718677836395,-501.93898465,0.00021917,2]
[329795930,1718677836404,-500.0,0.00021917,2]
[329795931,1718677836414,-505.33053657,0.00021917,2]
[329795932,1718677836431,-500.0,0.00021917,2]
[329795933,1718677836441,-500.0,0.00021917,2]
[329795934,1718677836450,-505.47833039,0.00021917,2]
[329795935,1718677836459,-480.0,0.00021917,2]
[329795936,1718677836469,-500.0,0.00021917,2]
[329795937,1718677836478,-504.84888358,0.00021917,2]
[329795938,1718677836488,-500.0,0.00021917,2]
[329795939,1718677836497,-500.0,0.00021917,2]
[329795940,1718677836507,-587.69841807,0.00021917,2]
[329795941,1718677836516,-500.0,0.00021917,2]
[329795942,1718677836525,-500.0,0.00021917,2]
[329795943,1718677836534,-500.0,0.00021917,2]
[329795944,1718677836543,-500.0,0.00021917,2]
[329795945,1718677836552,-500.39958456,0.00021917,2]
[329795946,1718677836561,-500.0,0.00021917,2]
[329795947,1718677836571,-500.0,0.00021917,2]
[329795948,1718677836581,-560.08,0.00021917,2]
[329795949,1718677836590,-500.97621891,0.00021917,2]
[329795950,1718677836600,-539.18133345,0.00021917,2]
[329795951,1718677836609,-500.0,0.00021917,2]
[329795952,1718677836619,-500.0,0.00021917,2]
[329795953,1718677836628,-500.0,0.00021917,2]
[329795954,1718677836638,-500.0,0.00021917,2]
[329795955,1718677836648,-507.16853541,0.00021917,2]
[329795956,1718677836659,-531.77665333,0.00021917,2]
[329795957,1718677836676,-500.0,0.00021917,2]
[329795958,1718677836687,-577.02,0.00021917,2]
[329795959,1718677836702,-500.0,0.00021917,2]
[329795960,1718677836712,-500.0,0.00021917,2]
[329795961,1718677836722,-500.0,0.00021917,2]
[329795962,1718677836731,-506.31857443,0.00021917,2]
[329795963,1718677836740,-570.64019569,0.00021917,2]
[329795964,1718677836750,-500.0,0.00021917,2]
[329795965,1718677836759,-500.0,0.00021917,2]
[329795966,1718677836768,-500.0,0.00021917,2]
[329795967,1718677836779,-508.64695215,0.00021917,2]
[329795968,1718677836790,-500.0,0.00021917,2]
[329795969,1718677836801,-324.99827154,0.00021917,2]
[329795970,1718677836811,-500.0,0.00021917,2]
[329795971,1718677836821,-502.69331285,0.00021917,2]
[329795972,1718677836832,-509.840861,0.00021917,2]
[329795973,1718677836842,-514.5263785,0.00021917,2]
[329795974,1718677836852,-500.0,0.00021917,2]
[329795975,1718677836862,-500.0,0.00021917,2]
[329795976,1718677836872,-500.0,0.00021917,2]
[329795977,1718677836882,-500.0,0.00021917,2]
[329795978,1718677836893,-500.0,0.00021917,2]
[329795979,1718677836903,-500.0,0.00021917,2]
[329795980,1718677836913,-500.0,0.00021917,2]
[329795981,1718677836931,-500.0,0.00021917,2]
[329795982,1718677836941,-450.81558573,0.00021917,2]
[329795983,1718677836951,-500.0,0.00021917,2]
[329795984,1718677836961,-541.89896935,0.00021917,2]
[329795985,1718677836971,-500.0,0.00021917,2]
[329795986,1718677836981,-543.33582158,0.00021917,2]
[329795987,1718677836992,-190.00115882,0.00021917,2]
[329795988,1718677837002,-500.0,0.00021917,2]
[329795989,1718677837012,-512.05705091,0.00021917,2]
[329795990,1718677837022,-509.38695855,0.00021917,2]
[329795991,1718677837034,-500.0,0.00021917,2]
[329795992,1718677837044,-500.0,0.00021917,2]
[329795993,1718677837053,-500.0,0.00021917,2]
[329795994,1718677837063,-508.91196375,0.00021917,2]
[329795995,1718677837074,-500.0,0.00021917,2]
[329795996,1718677837085,-520.04580513,0.00021917,2]
[329795997,1718677837095,-500.65487361,0.00021917,2]
[329795998,1718677837107,-500.0,0.00021917,2]
[329795999,1718677837118,-520.45652373,0.00021917,2]
[329796000,1718677837128,-500.0,0.00021917,2]
[329796001,1718677837138,-500.0,0.00021917,2]
[329796002,1718677837147,-510.78599216,0.00021917,2]
[329796003,1718677837157,-500.0,0.00021917,2]
[329796004,1718677837167,-500.0,0.00021917,2]
[329796005,1718677837185,-500.0,0.00021917,2]
[329796006,1718677837194,-500.0,0.00021917,2]
[329796007,1718677837204,-500.0,0.00021917,2]
[329796008,1718677837215,-500.0,0.00021917,2]
[329796009,1718677837224,-513.04261716,0.00021917,2]
[329796010,1718677837233,-500.0,0.00021917,2]
[329796011,1718677837244,-500.0,0.00021917,2]
[329796012,1718677837254,-500.0,0.00021917,2]
[329796013,1718677837263,-500.0,0.00021917,2]
[329796014,1718677837273,-500.0,0.00021917,2]
[329796015,1718677837282,-392.49602697,0.00021917,2]
[329796016,1718677837292,-343.37131981,0.00021917,2]
[329796017,1718677837302,-500.0,0.00021917,2]
[329796018,1718677837312,-500.0,0.00021917,2]
[329796019,1718677837322,-500.0,0.00021917,2]
[329796020,1718677837332,-500.0,0.00021917,2]
[329796021,1718677837342,-500.0,0.00021917,2]
[329796022,1718677837352,-540.47413849,0.00021917,2]
[329796023,1718677837362,-502.86131498,0.00021917,2]
[329796024,1718677837372,-500.0,0.00021917,2]
[329796025,1718677837382,-500.0,0.00021917,2]
[329796026,1718677837392,-515.29584611,0.00021917,2]
[329796027,1718677837401,-500.0,0.00021917,2]
[329796028,1718677837411,-500.0,0.00021917,2]
[329796029,1718677837425,-500.0,0.00021917,2]
[329796030,1718677837434,-500.0,0.00021917,2]
[329796031,1718677837444,-500.0,0.00021917,2]
[329796032,1718677837453,-200.0,0.00021917,2]
[329796033,1718677837463,-500.0,0.00021917,2]
[329796034,1718677837473,-500.0,0.00021917,2]
[329796035,1718677837483,-500.0,0.00021917,2]
[329796036,1718677837492,-500.0,0.00021917,2]
[329796037,1718677837502,-500.0,0.00021917,2]
[329796038,1718677837512,-500.0,0.00021917,2]
[329796039,1718677837523,-500.0,0.00021917,2]
[329796040,1718677837533,-500.0,0.00021917,2]
[329796041,1718677837543,-500.0,0.00021917,2]
[329796042,1718677837553,-500.0,0.00021917,2]
[329796043,1718677837563,-500.0,0.00021917,2]
[329796044,1718677837573,-500.0,0.00021917,2]
[329796045,1718677837582,-500.0,0.00021917,2]
[329796046,1718677837591,-500.0,0.00021917,2]
[329796047,1718677837602,-500.0,0.00021917,2]
[329796048,1718677837611,-500.0,0.00021917,2]
[329796049,1718677837621,-500.0,0.00021917,2]
[329796050,1718677837631,-500.0,0.00021917,2]
[329796051,1718677837641,-500.0,0.00021917,2]
[329796052,1718677837650,-505.16519932,0.00021917,2]
[329796053,1718677837660,-500.0,0.00021917,2]
[329796054,1718677837673,-500.0,0.00021917,2]
[329796055,1718677837683,-500.0,0.00021917,2]
[329796056,1718677837694,-598.11172997,0.00021917,2]
[329796057,1718677837704,-500.0,0.00021917,2]
[329796058,1718677837719,-500.0,0.00021917,2]
[329796059,1718677837730,-500.0,0.00021917,2]
[329796060,1718677837739,-505.90493938,0.00021917,2]
[329796061,1718677837750,-500.0,0.00021917,2]
[329796062,1718677837760,-557.07462393,0.00021917,2]
[329796063,1718677837770,-500.0,0.00021917,2]
[329796064,1718677837780,-509.98778464,0.00021917,2]
[329796065,1718677837791,-500.0,0.00021917,2]
[329796066,1718677837800,-1001.19230155,0.00021917,2]
[329796067,1718677837810,-500.0,0.00021917,2]
[329796068,1718677837819,-500.0,0.00021917,2]
[329796069,1718677837829,-500.0,0.00021917,2]
[329796070,1718677837839,-500.0,0.00021917,2]
[329796071,1718677837848,-500.0,0.00021917,2]
[329796072,1718677837858,-500.0,0.00021917,2]
[329796073,1718677837867,-500.0,0.00021917,2]
[329796074,1718677837876,-500.0,0.00021917,2]
[329796075,1718677837886,-500.0,0.00021917,2]
[329796076,1718677837896,-592.84,0.00021917,2]
[329796077,1718677837905,-502.19362688,0.00021917,2]
[329796078,1718677837915,-500.0,0.00021917,2]
[329796079,1718677837930,-515.95230285,0.00021917,2]
[329796080,1718677837939,-500.0,0.00021917,2]
[329796081,1718677837948,-500.0,0.00021917,2]
[329796082,1718677837957,-500.0,0.00021917,2]
[329796083,1718677837966,-500.0,0.00021917,2]
[329796084,1718677837975,-500.0,0.00021917,2]
[329796085,1718677837984,-500.0,0.00021917,2]
[329796086,1718677837995,-500.0,0.00021917,2]
[329796087,1718677838004,-500.0,0.00021917,2]
[329796088,1718677838014,-500.0,0.00021917,2]
[329796089,1718677838024,-993.31,0.00021917,2]
[329796090,1718677838034,-500.0,0.00021917,2]
[329796091,1718677838043,-500.0,0.00021917,2]
[329796092,1718677838053,-500.0,0.00021917,2]
[329796093,1718677838062,-500.0,0.00021917,2]
[329796094,1718677838071,-500.0,0.00021917,2]
[329796095,1718677838082,-500.0,0.00021917,2]
[329796096,1718677838091,-500.0,0.00021917,2]
[329796097,1718677838101,-504.14296999,0.00021917,2]
[329796098,1718677838110,-500.0,0.00021917,2]
[329796099,1718677838120,-503.1424692,0.00021917,2]
[329796100,1718677838129,-393.57382299,0.00021917,2]
[329796101,1718677838138,-500.0,0.00021917,2]
[329796102,1718677838148,-500.0,0.00021917,2]
[329796103,1718677838157,-773.0,0.00021917,2]
[329796104,1718677838166,-504.62309625,0.00021917,2]
[329796105,1718677838179,-187.0,0.00021917,2]
[329796106,1718677838188,-500.0,0.00021917,2]
[329796107,1718677838198,-500.0,0.00021917,2]
[329796108,1718677838208,-500.0,0.00021917,2]
[329796109,1718677838217,-389.72368423,0.00021917,2]
[329796119,1718677838891,-110.27631577,0.00021917,2]
[329796120,1718677838901,-793.27464018,0.00021917,2]
[329796122,1718677838913,-239.03535982,0.00021917,2]
[329796124,1718677838926,-279.36485245,0.00021917,2]
[329796127,1718677838937,-220.63514755,0.00021917,2]
[329796129,1718677838946,-500.0,0.00021917,2]
[329796130,1718677838955,-279.51939431,0.00021917,2]
[329796187,1718677840695,-622.83715495,0.00019893,2]
[329796188,1718677840708,-189.16284505,0.00019893,2]
[329796189,1718677840723,-155.0,0.0002,2]
[329796190,1718677840734,-360.47560299,0.00021917,2]
[329796191,1718677840748,-421.52439701,0.00021917,2]
[329796192,1718677840758,-222.7891715,0.00021917,2]
[329796193,1718677840770,-500.0,0.00021917,2]
[329796194,1718677840780,-500.0,0.00021917,2]
[329796195,1718677840792,-500.0,0.00021917,2]
[329796196,1718677840804,-500.0,0.00021917,2]
[329796197,1718677840814,-500.0,0.00021917,2]
[329796198,1718677840825,-514.62047585,0.00021917,2]
[329796199,1718677840836,-500.0,0.00021917,2]
[329796200,1718677840846,-500.0,0.00021917,2]
[329796201,1718677840857,-507.22814153,0.00021917,2]
[329796202,1718677840866,-500.0,0.00021917,2]
[329796203,1718677840877,-500.0,0.00021917,2]
[329796204,1718677840887,-500.0,0.00021917,2]
[329796205,1718677840897,-500.0,0.00021917,2]
[329796206,1718677840907,-501.05057727,0.00021917,2]
[329796207,1718677840917,-500.0,0.00021917,2]
[329796208,1718677840934,-780.52,0.00021917,2]
[329796209,1718677840944,-500.0,0.00021917,2]
[329796210,1718677840954,-500.0,0.00021917,2]
[329796211,1718677840964,-500.0,0.00021917,2]
[329796212,1718677840974,-500.0,0.00021917,2]
[329796213,1718677840983,-500.0,0.00021917,2]
[329796214,1718677840993,-500.0,0.00021917,2]
[329796215,1718677841002,-500.0,0.00021917,2]
[329796216,1718677841011,-500.0,0.00021917,2]
[329796217,1718677841021,-500.0,0.00021917,2]
[329796218,1718677841030,-500.0,0.00021917,2]
[329796219,1718677841039,-500.0,0.00021917,2]
[329796220,1718677841048,-500.0,0.00021917,2]
[329796221,1718677841059,-500.0,0.00021917,2]
[329796222,1718677841069,-500.0,0.00021917,2]
[329796223,1718677841079,-506.07396307,0.00021917,2]
[329796224,1718677841090,-500.0,0.00021917,2]
[329796225,1718677841099,-500.0,0.00021917,2]
[329796226,1718677841109,-500.0,0.00021917,2]
[329796227,1718677841119,-502.94147323,0.00021917,2]
[329796228,1718677841129,-500.0,0.00021917,2]
[329796229,1718677841139,-500.0,0.00021917,2]
[329796230,1718677841150,-503.37156279,0.00021917,2]
[329796232,1718677841160,-500.0,0.00021917,2]
[329796233,1718677841170,-500.0,0.00021917,2]
[329796235,1718677841185,-500.0,0.00021917,2]
[329796237,1718677841195,-500.0,0.00021917,2]
[329796239,1718677841206,-882.74,0.00021917,2]
[329796241,1718677841216,-667.77,0.00021917,2]
[329796243,1718677841226,-500.0,0.00021917,2]
[329796245,1718677841236,-500.0,0.00021917,2]
[329796246,1718677841246,-327.94601483,0.00021917,2]
[329796247,1718677841257,-503.00771206,0.00021917,2]
[329796248,1718677841268,-97.19771397,0.00021917,2]
[329796249,1718677841285,-402.80228603,0.00021917,2]
[329796250,1718677841295,-94.44475222,0.00021917,2]
[329796251,1718677841307,-405.55524778,0.00021917,2]
[329796252,1718677841316,-377.56690071,0.00021917,2]
[329796253,1718677841327,-122.43309929,0.00021917,2]
[329796254,1718677841337,-141.95781307,0.00021917,2]
[329796255,1718677841348,-358.04218693,0.00021917,2]
[329796256,1718677841357,-361.28063608,0.00021917,2]
[329796257,1718677841370,-138.71936392,0.00021917,2]
[329796258,1718677841379,-494.97428159,0.00021917,2]
[329796259,1718677841391,-5.02571841,0.00021917,2]
[329796260,1718677841400,-500.0,0.00021917,2]
[329796261,1718677841409,-1093.79714232,0.00021917,2]
[329796262,1718677841419,-500.0,0.00021917,2]
[329796263,1718677841434,-500.0,0.00021917,2]
[329796264,1718677841443,-500.0,0.00021917,2]
[329796265,1718677841452,-391.20081799,0.00021917,2]
[329796266,1718677841463,-108.79918201,0.00021917,2]
[329796267,1718677841473,-500.0,0.00021917,2]
[329796268,1718677841482,-500.0,0.00021917,2]
[329796269,1718677841491,-500.0,0.00021917,2]
[329796270,1718677841499,-500.0,0.00021917,2]
[329796271,1718677841508,-508.96933291,0.00021917,2]
[329796272,1718677841518,-500.0,0.00021917,2]
[329796273,1718677841528,-500.0,0.00021917,2]
[329796274,1718677841537,-500.0,0.00021917,2]
[329796275,1718677841547,-502.8014098,0.00021917,2]
[329796276,1718677841557,-500.0,0.00021917,2]
[329796277,1718677841567,-522.73,0.00021917,2]
[329796278,1718677841576,-500.0,0.00021917,2]
[329796279,1718677841587,-500.0,0.00021917,2]
[329796280,1718677841597,-500.0,0.00021917,2]
[329796281,1718677841606,-500.0,0.00021917,2]
[329796282,1718677841616,-500.0,0.00021917,2]
[329796283,1718677841626,-500.0,0.00021917,2]
[329796284,1718677841636,-500.0,0.00021917,2]
[329796285,1718677841646,-500.0,0.00021917,2]
[329796286,1718677841656,-504.51303198,0.00021917,2]
[329796287,1718677841666,-500.0,0.00021917,2]
[329796288,1718677841682,-500.0,0.00021917,2]
[329796289,1718677841694,-500.0,0.00021917,2]
[329796290,1718677841707,-503.84659915,0.00021917,2]
[329796291,1718677841717,-500.0,0.00021917,2]
[329796292,1718677841727,-500.0,0.00021917,2]
[329796293,1718677841737,-312.79011921,0.00021917,2]
[329796294,1718677841753,-187.20988079,0.00021917,2]
[329796295,1718677841763,-500.0,0.00021917,2]
[329796296,1718677841775,-500.0,0.00021917,2]
[329796297,1718677841786,-500.0,0.00021917,2]
[329796298,1718677841796,-500.0,0.00021917,2]
[329796299,1718677841805,-500.0,0.00021917,2]
[329796300,1718677841815,-500.0,0.00021917,2]
[329796301,1718677841825,-885.2,0.00021917,2]
[329796302,1718677841835,-500.0,0.00021917,2]
[329796303,1718677841846,-500.0,0.00021917,2]
[329796304,1718677841856,-504.15,0.00021917,2]
[329796305,1718677841867,-500.0,0.00021917,2]
[329796306,1718677841878,-500.0,0.00021917,2]
[329796307,1718677841888,-500.0,0.00021917,2]
[329796308,1718677841899,-500.0,0.00021917,2]
[329796309,1718677841909,-500.0,0.00021917,2]
[329796310,1718677841919,-500.0,0.00021917,2]
[329796311,1718677841936,-500.0,0.00021917,2]
[329796312,1718677841945,-500.0,0.00021917,2]
[329796313,1718677841954,-500.0,0.00021917,2]
[329796314,1718677841963,-500.0,0.00021917,2]
[329796315,1718677841973,-500.0,0.00021917,2]
[329796316,1718677841982,-500.0,0.00021917,2]
[329796317,1718677841991,-913.63,0.00021917,2]
[329796318,1718677842000,-500.0,0.00021917,2]
[329796319,1718677842010,-500.0,0.00021917,2]
[329796320,1718677842020,-500.0,0.00021917,2]
[329796321,1718677842029,-500.0,0.00021917,2]
[329796322,1718677842038,-500.0,0.00021917,2]
[329796323,1718677842048,-500.0,0.00021917,2]
[329796324,1718677842059,-500.0,0.00021917,2]
[329796325,1718677842069,-506.40500979,0.00021917,2]